bitfinex-derivatives/quotes_SOLF0:USTF0_20250127
["timestamp","ask_amount","ask_price","bid_price","bid_amount"]
[1737976054000,23.38438775,223.24,223.08,0.02981332]
[1737976054199,0.03095727,223.15,223.02,3.28]
[1737976054400,0.03095727,223.15,223.13,0.03001863]
[1737976054597,0.03095727,223.15,223.02,3.28]
[1737976054900,0.03095727,223.15,223.12,0.0309237]
[1737976055200,0.03095727,223.15,223.13,4.4835]
[1737976056201,0.03095727,223.15,223.11,0.03047708]
[1737976056793,0.03095727,223.15,223.13,4.4836]
[1737976057502,5.727e-05,223.15,223.13,4.4836]
[1737976058704,5.727e-05,223.15,223.14,4.4834]
[1737976059402,5.727e-05,223.15,223.11,0.03047708]
[1737976061205,5.727e-05,223.15,223.12,4.4838]
[1737976061407,5.727e-05,223.15,223.11,0.03047708]
[1737976062201,5.727e-05,223.15,223.13,4.4835]
[1737976062508,5.727e-05,223.15,223.11,0.03047708]
[1737976062705,5.727e-05,223.15,223.14,4.4834]
[1737976065012,5.727e-05,223.15,223.12,2.7265]
[1737976065714,5.727e-05,223.15,223.14,4.4834]
[1737976067215,1.34,223.37,223.23,4.4816]
[1737976067216,5.9414,223.3,223.23,4.4816]
[1737976067516,24.83898775,223.36,223.15,3.28]
[1737976067816,26.26178775,223.36,223.15,3.28]
[1737976068010,2.8774,223.36,223.17,23.38438775]
[1737976068412,2.8774,223.36,223.15,3.28]
[1737976068413,5.49e-05,223.29,223.24,0.0321954]
[1737976068612,23.38438775,223.48,223.25,23.38438775]
[1737976068812,23.38438775,223.48,223.26,1.3981]
[1737976069018,4.4775,223.44,223.33,4.4795]
[1737976069313,23.38438775,223.48,223.26,1.3981]
[1737976069518,4.4781,223.41,223.32,4.4798]
[1737976069814,0.03009592,223.39,223.35,0.03414346]
[1737976070013,23.38438775,223.48,223.35,0.03414346]
[1737976070216,0.0320538,223.44,223.35,0.03414346]
[1737976070815,4.478,223.42,223.35,0.03414346]
[1737976071514,0.0320538,223.44,223.35,0.03414346]
[1737976071714,4.5095538,223.44,223.35,0.03414346]
[1737976072920,0.0320538,223.44,223.35,0.03414346]
[1737976073220,4.5094538,223.44,223.35,0.03414346]
[1737976073419,0.0320538,223.44,223.35,4.51324346]
[1737976073614,4.4783,223.4,223.35,0.03414346]
[1737976073917,23.41644155,223.44,223.35,0.03414346]
[1737976074118,1.4186,223.39,223.35,0.03414346]
[1737976074317,4.4789,223.37,223.35,0.03414346]
[1737976076621,0.03205566,223.39,223.35,0.03414346]
[1737976077227,0.03205566,223.39,223.27,1.3459]
[1737976077926,4.4787,223.38,223.31,4.4799]
[1737976078126,0.03205566,223.39,223.27,1.3459]
[1737976078323,0.03205566,223.39,223.32,0.0326088]
[1737976079225,4.479,223.36,223.32,0.0326088]
[1737976079819,0.03205566,223.39,223.32,0.0326088]
[1737976080228,0.03205566,223.39,223.33,4.4795]
[1737976080422,0.03205566,223.39,223.32,0.0326088]
[1737976081325,0.03205566,223.39,223.32,23.41699655]
[1737976081519,1.335,223.5,223.36,23.38438775]
[1737976081724,4.4756,223.54,223.45,4.4771]
[1737976081920,2.9115,223.59,223.4,23.38438775]
[1737976082127,1.4522,223.62,223.44,23.38438775]
[1737976082424,23.38438775,223.68,223.41,1.4064]
[1737976082425,2.9115,223.68,223.48,23.38438775]
[1737976082630,4.3406,223.68,223.52,23.38438775]
[1737976082926,0.03318842,223.6,223.56,0.02986594]
[1737976083928,6.13708163,223.69,223.56,23.41425369]
[1737976084128,6.13708163,223.69,223.57,1.4597]
[1737976084330,11.34072652,223.7,223.64,23.38438775]
[1737976084524,71.47175892,223.73,223.69,38.0559739]
[1737976084723,56.33735892,223.73,223.69,41.3159739]
[1737976084932,48.39965892,223.73,223.69,41.3159739]
[1737976085130,48.43011694,223.73,223.69,41.34572244]
[1737976085630,0.03045802,223.73,223.71,4.472]
[1737976086329,0.03045802,223.73,223.69,41.34572244]
[1737976087729,181.82436846,223.83,223.69,41.34572244]
[1737976087922,94.98623519,223.76,223.75,38.0559739]
[1737976088128,181.82436846,223.83,223.76,4.4709]
[1737976088329,104.45615749,223.79,223.75,38.0559739]
[1737976088930,104.48625302,223.79,223.75,38.08528415]
[1737976089227,0.03009553,223.79,223.75,38.08528415]
[1737976089827,0.03009553,223.79,223.77,4.4707]
[1737976090732,0.03009553,223.79,223.75,38.08528415]
[1737976091734,0.03009553,223.79,223.77,4.4707]
[1737976093433,0.03009553,223.79,223.75,38.08528415]
[1737976094436,0.03009553,223.79,223.77,4.4707]
[1737976094732,42.2088739,223.99,223.75,38.08528415]
[1737976094932,42.2088739,223.99,223.78,4.4706]
[1737976095131,42.2088739,223.99,223.75,38.0559739]
[1737976095430,42.2088739,223.99,223.8,38.0559739]
[1737976096036,0.03222491,223.87,223.82,0.02954108]
[1737976097940,0.03222491,223.87,223.84,38.0559739]
[1737976098139,38.0559739,224.07,223.84,38.0559739]
[1737976098328,4.3431,224.06,223.88,38.0559739]
[1737976098636,34.63337545,223.89,223.88,45.7845739]
[1737976099137,4.3431,224.06,223.88,41.3159739]
[1737976099331,0.03037762,223.91,223.88,41.3159739]
[1737976099639,4.4653,224.05,223.88,41.3159739]
[1737976099840,0.03313223,223.92,223.91,4.468]
[1737976100035,4.3431,224.06,223.88,41.3159739]
[1737976100234,78.06756501,224.19,223.97,38.0559739]
[1737976100435,0.02938377,223.99,223.97,38.0559739]
[1737976100737,4.4647,224.08,223.97,38.0559739]
[1737976100933,0.03419409,224.0,223.96,0.02921327]
[1737976101238,4.4636,224.14,223.97,38.0559739]
[1737976101439,0.03167657,224.0,223.98,4.4665]
[1737976101631,0.03167657,224.0,223.97,38.0559739]
[1737976101836,42.3144739,224.18,223.97,38.0559739]
[1737976102040,0.03023331,224.01,223.97,42.5227739]
[1737976102239,42.3144739,224.18,223.97,38.0559739]
[1737976102436,0.02854466,224.01,223.97,38.08869906]
[1737976102636,4.4644,224.09,223.97,38.0559739]
[1737976102935,0.03347356,224.01,223.97,38.08849408]
[1737976103238,42.3144739,224.18,223.97,38.0559739]
[1737976103830,38.0559739,224.14,223.93,38.0559739]
[1737976104033,38.0559739,224.14,223.83,179.95113995]
[1737976104034,38.0559739,224.1,223.9,3.26]
[1737976104537,0.02979347,224.02,223.98,0.02933723]
[1737976106433,0.02979347,224.02,223.89,38.0559739]
[1737976106638,0.02979347,224.02,223.9,3.26]
[1737976107036,4.466,224.02,223.9,3.26]
[1737976107940,0.0329816,223.98,223.94,0.02909407]
[1737976108947,0.0329816,223.98,223.95,4.4672]
[1737976109339,4.4657,224.03,223.94,0.02909407]
[1737976109542,1.4573,224.05,223.94,0.02909407]
[1737976110739,4.49921356,224.02,223.94,0.02909407]
[1737976110939,0.03341356,224.02,223.94,0.02909407]
[1737976111346,4.4648,224.08,223.94,0.02909407]
[1737976111640,4.4648,224.08,223.9,3.26]
[1737976111845,1.4143,224.07,223.99,4.4663]
[1737976112140,1.4143,224.07,223.9,3.26]
[1737976112344,1.4143,224.07,224.0,4.4662]
[1737976112545,0.03139828,224.01,223.96,0.03088817]
[1737976112845,1.4143,224.07,223.99,4.4664]
[1737976113046,1.4143,224.07,223.96,23.37509378]
[1737976113240,27.38668489,224.19,223.96,23.37509378]
[1737976113442,23.37509378,224.15,224.01,4.4659]
[1737976113745,23.37509378,224.15,223.92,23.37509378]
[1737976113946,0.03298973,224.1,224.06,0.03008634]
[1737976114141,1.4467,224.18,224.02,3.26]
[1737976114342,1.4467,224.18,224.06,0.03430582]
[1737976114746,4.4631,224.16,224.07,4.4648]
[1737976115146,1.4467,224.18,224.06,0.03430582]
[1737976115445,23.37509378,224.23,224.11,4.464]
[1737976115845,4.4619,224.22,224.1,4.4641]
[1737976116046,59.37509378,224.27,224.15,0.03273782]
[1737976116245,23.37509378,224.27,224.15,0.03273782]
[1737976116440,4.4618,224.23,224.15,0.03273782]
[1737976116641,1.4411,224.22,224.15,0.03273782]
[1737976118444,4.4621,224.21,224.15,0.03273782]
[1737976118947,1.4411,224.22,224.15,0.03273782]
[1737976119146,1.4411,224.22,224.15,4.49593782]
[1737976119341,1.4411,224.22,224.15,0.03273782]
[1737976120146,1.4411,224.22,224.16,4.463]
[1737976120739,1.4411,224.22,224.15,0.03273782]
[1737976120939,1.4411,224.22,224.04,23.37509378]
[1737976121449,1.4411,224.22,224.08,23.37509378]
[1737976121848,1.4411,224.22,224.12,4.4638]
[1737976122147,0.02946896,224.17,224.13,0.03420138]
[1737976123146,0.02946896,224.17,224.14,4.4634]
[1737976124350,0.02946896,224.17,224.16,4.463]
[1737976124652,0.02946896,224.17,224.13,0.03420138]
[1737976124852,0.02946896,224.17,224.15,4.4632]
[1737976125047,0.02946896,224.17,224.13,0.03420138]
[1737976125752,0.02946896,224.17,224.04,23.37509378]
[1737976125953,0.02946896,224.17,224.03,3.26]
[1737976126453,1.4411,224.22,224.04,23.37509378]
[1737976126952,1.4411,224.22,224.03,3.26]
[1737976126953,1.4411,224.22,224.08,23.37509378]
[1737976127148,1.927e-05,224.15,224.12,23.37509378]
[1737976127453,1.3806,224.24,224.12,23.37509378]
[1737976127947,23.37509378,224.33,224.13,4.4635]
[1737976128152,23.37509378,224.33,224.12,23.37509378]
[1737976128447,0.03238754,224.25,224.21,0.03141944]
[1737976129351,23.37509378,224.33,224.21,0.03141944]
[1737976129552,23.37509378,224.33,224.15,3.26]
[1737976130053,4.4607,224.28,224.15,7.7231]
[1737976130255,23.37509378,224.33,224.15,3.26]
[1737976130456,23.37509378,224.33,224.19,0.03055595]
[1737976130756,23.37509378,224.33,224.15,3.26]
[1737976130948,23.37509378,224.33,224.24,0.0309142]
[1737976131255,4.4612,224.26,224.24,0.0309142]
[1737976133256,4.2954,224.25,224.24,0.0309142]
[1737976133754,0.56434377,224.25,224.24,0.0309142]
[1737976134255,27.68353211,224.37,224.24,0.0309142]
[1737976134451,4.30843833,224.37,224.24,0.0309142]
[1737976134751,4.459,224.37,224.27,4.4608]
[1737976134957,23.37509378,224.41,224.27,4.4608]
[1737976135156,23.37509378,224.45,224.25,3.26]
[1737976135355,23.37509378,224.45,224.32,0.03115944]
[1737976136057,4.4584,224.4,224.32,0.03115944]
[1737976137453,23.37509378,224.49,224.32,0.03115944]
[1737976137660,23.37509378,224.53,224.31,23.37509378]
[1737976137855,23.37509378,224.53,224.38,0.03261144]
[1737976138354,23.37509378,224.57,224.43,0.03227216]
[1737976138552,4.4563,224.5,224.43,0.03227216]
[1737976138754,23.37509378,224.61,224.43,23.37509378]
[1737976138959,1.3495,224.56,224.48,0.03250688]
[1737976140554,23.37509378,224.53,224.37,3.26]
[1737976140759,23.37509378,224.53,224.31,23.37509378]
[1737976141154,23.37509378,224.49,224.29,4.6875]
[1737976141355,23.37509378,224.45,224.29,3.26]
[1737976141554,1.401,224.44,224.29,3.26]
[1737976141754,0.02955273,224.39,224.35,0.03045835]
[1737976141957,0.02955273,224.39,224.22,179.95113995]
[1737976142260,4.4595,224.34,224.22,184.41283995]
[1737976142561,23.37509378,224.41,224.22,179.95113995]
[1737976143258,0.03250829,224.34,224.29,0.03034152]
[1737976144053,0.03250829,224.34,224.22,179.95113995]
[1737976144359,4.4603,224.3,224.22,179.95113995]
[1737976145162,0.03119042,224.28,224.24,0.0309232]
[1737976145862,4.461,224.27,224.22,179.95113995]
[1737976146060,0.03119042,224.28,224.22,171.14113995]
[1737976146264,0.03119042,224.28,224.22,165.99563995]
[1737976146466,4.4615,224.24,224.22,152.42963995]
[1737976146860,4.4615,224.24,224.22,145.71993995]
[1737976147567,4.4619,224.22,224.21,8.69e-05]
[1737976148471,23.37509378,224.25,224.05,1.371]
[1737976148767,23.37509378,224.17,224.05,1.371]
[1737976149765,4.464,224.12,224.1,0.02921561]
[1737976150969,4.464,224.12,224.1,1.561e-05]
[1737976152074,4.4661,224.01,223.94,4.4673]
[1737976152274,37.96465677,224.04,223.84,37.96465677]
[1737976152474,37.96465677,224.04,223.88,4.4685]
[1737976152674,37.96465677,224.04,223.83,2.733]
[1737976152675,4.4673,223.95,223.83,2.733]
[1737976152877,37.96465677,224.0,223.83,2.733]
[1737976153279,0.03101519,223.94,223.89,0.03378848]
[1737976156579,37.96465677,224.08,223.89,0.03378848]
[1737976156781,4.4652,224.06,223.95,4.4672]
[1737976156975,37.96465677,224.13,223.88,37.96465677]
[1737976157281,37.96465677,224.13,223.93,37.96465677]
[1737976157477,41.22465677,224.17,223.93,37.96465677]
[1737976157676,4.465,224.07,223.97,4.4668]
[1737976157881,0.03005681,224.07,224.03,0.02895884]
[1737976158282,41.22465677,224.17,223.93,37.96465677]
[1737976158485,0.03135924,224.07,224.03,0.0323265]
[1737976158683,41.22465677,224.17,224.01,4.466]
[1737976158884,41.22465677,224.17,223.97,37.96465677]
[1737976159076,0.03171844,224.07,224.03,0.03177503]
[1737976159276,3.26,224.17,223.98,2.8138]
[1737976159484,0.03110761,224.07,224.03,0.02856703]
[1737976159885,4.4647,224.08,223.98,2.8138]
[1737976160086,0.03133745,224.07,224.03,0.02883735]
[1737976160283,37.96465677,224.13,224.03,0.02883735]
[1737976160491,37.96465677,224.13,223.92,3.26]
[1737976160786,0.03263246,224.07,224.03,5.16e-06]
[1737976160985,37.96465677,224.05,223.84,41.22465677]
[1737976161481,37.96465677,224.05,223.88,4.4686]
[1737976161986,0.03349019,223.99,223.94,0.03346871]
[1737976162678,4.4671,223.96,223.94,0.03346871]
[1737976162881,0.03349019,223.99,223.85,1.385]
[1737976163286,37.96465677,224.01,223.85,1.385]
[1737976163486,37.96465677,223.97,223.81,2.7906]
[1737976163880,4.4683,223.9,223.82,4.4697]
[1737976164087,0.03244342,223.91,223.87,0.03197806]
[1737976164281,37.96465677,223.95,223.72,37.96465677]
[1737976164478,0.03138354,223.91,223.87,0.03056297]
[1737976164679,37.96465677,223.95,223.73,2.7461]
[1737976164881,37.9980208,223.91,223.87,2.867e-05]
[1737976165083,37.96465677,223.91,223.73,2.7461]
[1737976165684,4.4699,223.82,223.73,2.7461]
[1737976165883,37.96465677,223.91,223.73,2.7461]
[1737976166083,0.03403024,223.8,223.75,0.03207442]
[1737976166484,37.96465677,223.91,223.73,2.7461]
[1737976166690,0.0321135,223.8,223.75,0.03119356]
[1737976166988,37.96465677,223.91,223.73,2.7461]
[1737976167192,0.02825297,223.8,223.75,4.50233847]
[1737976167384,0.02825297,223.8,223.73,2.7461]
[1737976167584,37.96465677,223.91,223.75,0.03173609]
[1737976167784,0.03083488,223.79,223.75,0.03173609]
[1737976167982,4.47,223.82,223.73,2.7461]
[1737976168187,0.03323891,223.79,223.75,0.03211079]
[1737976168391,4.4697,223.83,223.73,2.7461]
[1737976168688,0.03184108,223.78,223.74,0.03093589]
[1737976168888,37.96465677,223.91,223.73,2.7461]
[1737976169089,37.96465677,223.91,223.74,0.03144226]
[1737976169292,0.03248634,223.78,223.73,2.7461]
[1737976169488,4.4694,223.85,223.8,0.03181677]
[1737976169683,0.03131276,223.85,223.8,0.03181677]
[1737976169892,37.96465677,224.03,223.8,37.99386604]
[1737976170189,37.96465677,224.07,223.88,37.96465677]
[1737976170490,37.96465677,224.07,223.89,2.7304]
[1737976170686,4.4667,223.98,223.9,4.4681]
[1737976170882,37.96465677,224.03,223.8,41.22465677]
[1737976171183,4.4676,223.93,223.92,5.536e-05]
[1737976171588,37.96465677,223.95,223.77,1.3402]
[1737976172092,37.96465677,223.99,223.77,1.3402]
[1737976172588,0.03256748,223.9,223.86,0.03034879]
[1737976173090,0.03353993,223.9,223.86,4.49924879]
[1737976173390,0.03353993,223.9,223.87,4.4687]
[1737976173583,0.03353993,223.9,223.86,0.03034879]
[1737976173783,36.0,224.01,223.86,0.03034879]
[1737976173982,37.96465677,224.11,223.89,37.96465677]
[1737976174184,37.96465677,224.11,223.9,1.3452]
[1737976174585,4.4654,224.04,223.96,4.467]
[1737976174788,4.4654,224.04,223.9,1.3452]
[1737976175192,0.02839555,224.02,223.98,0.03040479]
[1737976175388,37.96465677,224.11,223.98,0.03040479]
[1737976175592,0.03114308,224.02,223.99,4.4664]
[1737976175792,0.03114308,224.02,223.98,0.03040479]
[1737976175793,37.96465677,224.11,223.98,0.03040479]
[1737976175994,37.96465677,224.11,223.9,1.3452]
[1737976176294,0.03011023,224.03,223.98,0.03388206]
[1737976176596,0.03011023,224.03,223.9,1.3452]
[1737976177286,4.4662,224.01,223.95,4.4672]
[1737976177484,0.03011023,224.03,223.9,1.3452]
[1737976177693,37.96465677,224.07,223.9,1.3452]
[1737976177891,0.03187123,223.99,223.94,0.03403761]
[1737976178292,4.4668,223.97,223.94,0.03403761]
[1737976178493,0.03187123,223.99,223.94,0.03403761]
[1737976179195,73.96465677,224.15,223.94,0.03403761]
[1737976179387,37.96465677,224.15,223.94,0.03403761]
[1737976179694,37.96465677,224.23,224.01,37.96465677]
[1737976179893,4.4637,224.13,224.05,4.4651]
[1737976180095,37.96465677,224.19,224.02,1.3237]
[1737976180497,4.4646,224.09,224.08,0.03390542]
[1737976180693,0.02963654,224.13,224.08,0.03390542]
[1737976181697,0.02963654,224.13,224.11,4.4639]
[1737976181893,0.02963654,224.13,224.08,0.03390542]
[1737976182699,0.02963654,224.13,224.09,4.4643]
[1737976183397,0.02963654,224.13,224.08,0.03390542]
[1737976183998,4.4644,224.09,224.08,0.03390542]
[1737976184390,37.96465677,224.11,223.98,1.4327]
[1737976185200,4.4654,224.05,223.98,5.8993]
[1737976185394,37.96465677,224.11,223.98,1.4327]
[1737976185694,0.02947382,224.04,224.01,4.466]
[1737976185895,37.96465677,224.15,224.01,4.466]
[1737976186093,0.03357104,224.05,224.0,0.03300274]
[1737976186397,37.96465677,224.19,223.98,1.4327]
[1737976186593,0.0308337,224.05,224.0,0.031195]
[1737976186788,37.96465677,224.23,224.01,37.96465677]
[1737976187292,4.463,224.17,224.06,4.4649]
[1737976187489,37.96465677,224.23,224.06,4.4649]
[1737976187999,4.4637,224.13,224.12,0.03181611]
[1737976188298,37.96465677,224.15,223.98,1.4327]
[1737976188500,37.96465677,224.15,224.1,0.03149741]
[1737976188695,37.96465677,224.19,223.98,1.4327]
[1737976189097,37.96465677,224.19,224.06,0.03255973]
[1737976189399,0.03103825,224.11,224.06,0.03255973]
[1737976189694,4.4646,224.09,224.06,0.03255973]
[1737976189894,0.03103825,224.11,224.06,0.03255973]
[1737976190090,4.49523825,224.11,224.06,0.03255973]
[1737976190496,0.03103825,224.11,224.06,0.03255973]
[1737976190901,4.4645,224.09,224.06,0.03255973]
[1737976191700,4.4648,224.07,224.06,0.03255973]
[1737976192100,0.03103825,224.11,224.06,0.03255973]
[1737976192299,4.49523825,224.11,224.06,0.03255973]
[1737976192501,0.03103825,224.11,224.06,0.03255973]
[1737976194203,4.4642,224.1,224.06,0.03255973]
[1737976194399,0.03103825,224.11,224.06,0.03255973]
[1737976194705,4.4648,224.07,224.06,0.03255973]
[1737976195100,4.4648,224.07,224.06,5.973e-05]
[1737976195907,42.42945677,224.07,224.06,5.973e-05]
[1737976196404,37.96465677,224.07,223.95,1.4467]
[1737976196603,23.38135603,224.09,223.95,1.4467]
[1737976197299,4.466,224.01,223.96,4.4669]
[1737976197500,4.466,224.01,224.0,0.03213545]
[1737976198205,0.03436609,224.04,224.0,0.03213545]
[1737976199004,4.466,224.01,224.0,3.545e-05]
[1737976200128,0.03436609,224.04,224.0,3.545e-05]
[1737976200416,6.01708719,224.27,224.0,3.545e-05]
[1737976200417,23.38135603,224.17,224.0,3.545e-05]
[1737976200618,23.38135603,224.21,224.08,4.4646]
[1737976201006,23.38135603,224.21,224.01,2.7099]
[1737976201411,4.4636,224.14,224.01,2.7099]
[1737976201608,0.02816701,224.13,224.09,0.03180849]
[1737976202205,0.02816701,224.13,224.11,4.464]
[1737976202402,0.02816701,224.13,224.09,0.03180849]
[1737976202798,37.94130614,224.29,224.09,0.03180849]
[1737976202999,37.94130614,224.29,224.11,37.94130614]
[1737976203203,37.94130614,224.29,224.16,4.4629]
[1737976203409,37.94130614,224.33,224.12,1.3387]
[1737976203609,43.95839333,224.37,224.15,37.94130614]
[1737976203908,43.95839333,224.37,224.16,1.4614]
[1737976204103,0.03248356,224.28,224.24,0.03372809]
[1737976204406,4.4596,224.34,224.24,0.03372809]
[1737976204703,0.03062003,224.28,224.24,0.03372809]
[1737976204899,37.94130614,224.37,224.24,0.03372809]
[1737976205099,37.94130614,224.3,224.16,1.4614]
[1737976205299,37.94130614,224.26,224.12,1.3387]
[1737976205607,4.4613,224.25,224.14,4.4634]
[1737976205807,37.94130614,224.3,224.14,4.4634]
[1737976206003,37.94130614,224.3,224.12,1.3387]
[1737976206402,0.03105992,224.23,224.19,0.03028691]
[1737976206809,37.94130614,224.34,224.19,4.4624]
[1737976207012,0.03228699,224.23,224.19,0.03023074]
[1737976207208,37.94130614,224.38,224.14,37.94130614]
[1737976207411,0.03332634,224.23,224.19,0.03088479]
[1737976207610,37.94130614,224.38,224.17,4.4627]
[1737976207812,0.02909213,224.23,224.14,37.94130614]
[1737976208112,4.4612,224.26,224.19,0.02937478]
[1737976208308,0.03406316,224.21,224.19,0.02937478]
[1737976208516,0.03406316,224.21,224.14,37.94130614]
[1737976208711,4.4613,224.25,224.18,0.03031038]
[1737976208914,0.03126794,224.2,224.18,0.03031038]
[1737976209209,0.03126794,224.2,224.19,0.03264691]
[1737976211615,0.03126794,224.2,224.02,37.94130614]
[1737976211816,4.4633,224.15,224.06,4.465]
[1737976212017,0.03126794,224.2,224.02,37.94130614]
[1737976212214,37.94130614,224.22,224.02,37.94130614]
[1737976212718,37.94130614,224.22,224.01,2.8568]
[1737976212917,0.03256694,224.17,224.13,0.0329768]
[1737976213116,39.26,224.33,224.14,37.94130614]
[1737976213314,39.26,224.33,224.14,39.36660614]
[1737976213709,39.26,224.33,224.16,4.4629]
[1737976213909,39.26,224.33,224.14,1.4253]
[1737976214112,37.94130614,224.3,224.14,1.4253]
[1737976214313,0.03229092,224.26,224.21,0.03113842]
[1737976214815,4.462,224.22,224.21,0.03113842]
[1737976215216,0.03229092,224.26,224.21,0.03113842]
[1737976215918,0.03229092,224.26,224.24,4.4614]
[1737976217018,0.0925,224.41,224.26,4.4609]
[1737976217324,0.0925,224.41,224.22,37.94130614]
[1737976217521,4.4595,224.34,224.22,37.94130614]
[1737976217721,0.0925,224.41,224.22,37.94130614]
[1737976217917,0.0925,224.41,224.23,4.4615]
[1737976218120,0.03407764,224.34,224.29,0.03359825]
[1737976221426,0.03407764,224.34,224.32,4.4597]
[1737976221819,0.03407764,224.34,224.3,4.4601]
[1737976222121,0.03407764,224.34,224.29,0.03359825]
[1737976222328,4.4599,224.32,224.29,0.03359825]
[1737976222524,0.03407764,224.34,224.29,0.03359825]
[1737976223025,4.4598,224.33,224.29,0.03359825]
[1737976223224,0.03407764,224.34,224.29,0.03359825]
[1737976223622,4.4603,224.3,224.29,0.00103131]
[1737976224923,4.4606,224.29,224.2,1.3914]
[1737976225127,0.088,224.36,224.24,4.4614]
[1737976225328,0.088,224.36,224.2,26.12787587]
[1737976225523,23.31507587,224.41,224.2,26.12787587]
[1737976225728,23.31507587,224.41,224.29,4.4604]
[1737976225928,23.31507587,224.41,224.2,26.12787587]
[1737976226130,0.02814548,224.37,224.33,0.03226765]
[1737976226330,23.34322135,224.37,224.2,2.8128]
[1737976226627,23.31507587,224.37,224.2,2.8128]
[1737976226833,4.4605,224.29,224.24,4.4614]
[1737976227032,23.31507587,224.37,224.2,2.8128]
[1737976227436,0.02865882,224.31,224.26,0.0319162]
[1737976228137,4.4605,224.29,224.26,0.0319162]
[1737976228339,0.02865882,224.31,224.12,23.31507587]
[1737976228633,23.31507587,224.29,224.09,1.4226]
[1737976229433,23.31507587,224.33,224.12,23.31507587]
[1737976229630,23.31507587,224.41,224.17,0.03428809]
[1737976229830,23.31507587,224.41,224.2,23.31507587]
[1737976230039,23.31507587,224.41,224.21,2.7371]
[1737976230239,23.31507587,224.41,224.21,4.1597]
[1737976230441,4.4603,224.3,224.23,4.4615]
[1737976230641,23.31507587,224.41,224.23,4.4615]
[1737976230842,0.03151111,224.29,224.24,0.02969012]
[1737976231337,0.03044552,224.29,224.24,0.03047362]
[1737976232833,0.03044552,224.29,224.24,4.49177362]
[1737976233039,0.03044552,224.29,224.24,0.03047362]
[1737976234643,4.4613,224.25,224.24,0.03047362]
[1737976235643,0.03044552,224.29,224.24,0.03047362]
[1737976237845,4.4613,224.25,224.24,0.03047362]
[1737976240144,4.4613,224.25,224.24,7.362e-05]
[1737976240348,4.463,224.16,224.13,2.7853]
[1737976240545,23.31507587,224.25,224.03,23.31507587]
[1737976240850,23.31507587,224.21,224.06,7.2823]
[1737976241246,23.31507587,224.21,224.06,2.8174]
[1737976241442,0.03199599,224.16,224.11,0.03247184]
[1737976241644,23.31507587,224.13,223.91,23.31507587]
[1737976241845,23.31507587,224.08,223.89,183.35442177]
[1737976242043,23.31507587,224.04,223.89,184.70462177]
[1737976242648,23.31507587,224.0,223.89,184.70462177]
[1737976242851,0.0323421,223.99,223.94,2.107e-05]
[1737976243147,4.4672,223.95,223.94,2.107e-05]
[1737976244350,4.4682,223.91,223.83,1.3502]
[1737976244551,38.03999871,223.96,223.83,1.3502]
[1737976244751,38.03999871,223.96,223.74,38.03999871]
[1737976244952,4.4686,223.89,223.79,4.4703]
[1737976245150,4.4686,223.89,223.75,1.3537]
[1737976245351,38.03999871,223.96,223.75,1.3537]
[1737976245547,0.0310053,223.87,223.82,0.03416021]
[1737976245856,38.07100401,223.87,223.82,6.021e-05]
[1737976246554,38.03999871,223.83,223.82,6.021e-05]
[1737976246744,42.50959871,223.83,223.82,6.021e-05]
[1737976247853,4.4696,223.83,223.82,6.021e-05]
[1737976248351,4.4693,223.85,223.82,6.021e-05]
[1737976249255,4.4693,223.85,223.69,4.0683]
[1737976249445,0.0310053,223.87,223.69,4.0683]
[1737976249751,38.10419871,223.91,223.76,4.471]
[1737976249752,4.4695,223.84,223.76,4.471]
[1737976250054,38.10419871,223.91,223.76,4.471]
[1737976250354,0.03216796,223.82,223.74,4.4713]
[1737976250652,0.03216796,223.82,223.69,4.0683]
[1737976251753,38.03999871,223.81,223.69,1.3679]
[1737976252446,0.03360554,223.77,223.69,1.3679]
[1737976252847,4.4715,223.74,223.69,1.3679]
[1737976253454,0.03360554,223.77,223.69,1.3679]
[1737976253956,38.03999871,223.89,223.71,38.03999871]
[1737976254147,38.03999871,223.89,223.7,1.4481]
[1737976254855,38.03999871,223.85,223.7,1.4481]
[1737976255154,4.4705,223.79,223.77,0.03334997]
[1737976256053,0.03368258,223.82,223.77,0.03334997]
[1737976256455,0.03368258,223.82,223.77,4.50414997]
[1737976256655,0.03368258,223.82,223.77,0.03334997]
[1737976257150,4.4703,223.8,223.77,0.03334997]
[1737976257356,0.03368258,223.82,223.77,0.03334997]
[1737976257753,4.50368258,223.82,223.77,0.03334997]
[1737976258255,0.03368258,223.82,223.77,0.03334997]
[1737976258855,4.4701,223.81,223.77,0.03334997]
[1737976259261,0.03368258,223.82,223.77,0.03334997]
[1737976259468,4.4706,223.78,223.77,0.03334997]
[1737976259655,0.03368258,223.82,223.77,0.03334997]